bitfinex-derivatives/quotes_BTCF0:USTF0_20250405
["timestamp","ask_amount","ask_price","bid_price","bid_amount"]
[1743840000090,0.00017957,83519.0,83518.0,0.29390536]
[1743840000295,0.0004,83524.0,83518.0,0.29390536]
[1743840000499,0.0004,83524.0,83519.0,0.3608]
[1743840000701,0.0004,83524.0,83519.0,0.36144]
[1743840001096,0.0004,83524.0,83520.0,0.05283805]
[1743840001297,0.0004,83524.0,83521.0,0.05283805]
[1743840001493,0.0004,83524.0,83522.0,0.05283805]
[1743840001704,0.0004,83524.0,83523.0,0.05283805]
[1743840002002,0.0004,83524.0,83523.0,0.05343805]
[1743840002202,0.14360132,83532.0,83523.0,0.05343805]
[1743840002409,0.14444132,83532.0,83529.0,0.3608]
[1743840002601,0.14444132,83532.0,83530.0,0.05032]
[1743840002794,0.14360132,83532.0,83530.0,0.05032]
[1743840003000,0.19119289,83538.0,83530.0,0.05032]
[1743840003705,0.19119289,83538.0,83529.0,0.3608]
[1743840004509,0.17946999,83538.0,83529.0,0.3608]
[1743840005404,0.18146999,83538.0,83529.0,0.3608]
[1743840005709,0.18346999,83538.0,83529.0,0.3608]
[1743840007401,0.18346999,83538.0,83530.0,1.5]
[1743840007910,0.18435,83538.0,83530.0,1.5]
[1743840008210,0.18346999,83538.0,83530.0,1.5]
[1743840008411,0.18346999,83538.0,83530.0,1.76]
[1743840009204,0.18346999,83538.0,83531.0,0.01697489]
[1743840009411,0.18346999,83538.0,83532.0,0.01697489]
[1743840009612,0.18346999,83538.0,83533.0,0.01697489]
[1743840009803,0.18346999,83538.0,83534.0,0.01697489]
[1743840010112,0.18346999,83538.0,83535.0,0.01697489]
[1743840010311,0.18346999,83538.0,83536.0,0.01697489]
[1743840010514,0.004,83538.0,83537.0,0.01697489]
[1743840010812,0.004,83538.0,83537.0,0.07610482]
[1743840011215,0.002,83538.0,83537.0,1.57610482]
[1743840011513,0.004,83538.0,83537.0,1.57610482]
[1743840011898,0.002,83538.0,83537.0,1.57610482]
[1743840012105,0.004,83538.0,83537.0,1.57610482]
[1743840012507,0.38801432,83539.0,83537.0,1.57610482]
[1743840012715,0.36543864,83539.0,83538.0,0.01697489]
[1743840012913,0.36543864,83539.0,83538.0,0.02697489]
[1743840014516,0.36743864,83539.0,83538.0,0.02697489]
[1743840014912,0.36943864,83539.0,83538.0,0.02697489]
[1743840015607,0.36743864,83539.0,83538.0,0.03924339]
[1743840015917,0.36943864,83539.0,83538.0,0.03924339]
[1743840016414,0.36943864,83539.0,83538.0,0.03916867]
[1743840017814,0.73023864,83539.0,83538.0,0.03916867]
[1743840018410,0.73107864,83539.0,83538.0,0.03976867]
[1743840018918,0.73107864,83539.0,83538.0,0.4381401]
[1743840019909,0.73107864,83539.0,83538.0,0.4381134]
[1743840020614,0.88107864,83539.0,83538.0,0.4381134]
[1743840020814,0.73107864,83539.0,83538.0,0.4281134]
[1743840029115,0.37027864,83539.0,83538.0,0.42811692]
[1743840029315,1.09187864,83539.0,83538.0,0.42811692]
[1743840030716,1.06790864,83539.0,83538.0,0.42811692]
[1743840031619,1.06790864,83539.0,83538.0,0.02974549]
[1743840032521,1.06590864,83539.0,83538.0,0.02974549]
[1743840032727,1.06790864,83539.0,83538.0,0.03016559]
[1743840033223,1.06890864,83539.0,83538.0,0.03016559]
[1743840033815,1.04493864,83539.0,83538.0,0.03016559]
[1743840034926,1.04293864,83539.0,83538.0,0.03016559]
[1743840035125,1.04493864,83539.0,83538.0,0.03016559]
[1743840035732,1.04293864,83539.0,83538.0,0.03016559]
[1743840035931,1.04493864,83539.0,83538.0,0.03016559]
[1743840036431,1.04493864,83539.0,83538.0,0.03017436]
[1743840037329,1.04393864,83539.0,83538.0,0.03017436]
[1743840039731,1.04193864,83539.0,83538.0,0.03017436]
[1743840039936,1.04393864,83539.0,83538.0,0.03017436]
[1743840040531,1.04193864,83539.0,83538.0,0.03017436]
[1743840040729,1.04393864,83539.0,83538.0,0.03017436]
[1743840043535,0.32233864,83539.0,83538.0,0.03017436]
[1743840043726,1.04393864,83539.0,83538.0,0.03017436]
[1743840044539,1.04393864,83539.0,83538.0,0.0301956]
[1743840045247,1.04193864,83539.0,83538.0,0.0301956]
[1743840045546,1.04393864,83539.0,83538.0,0.0301956]
[1743840046039,1.04393864,83539.0,83538.0,0.80541484]
[1743840047437,1.04193864,83539.0,83538.0,0.80541484]
[1743840047739,1.04393864,83539.0,83538.0,0.80541484]
[1743840049143,1.04393864,83539.0,83538.0,0.44783205]
[1743840050631,1.01996864,83539.0,83538.0,0.44783205]
[1743840053037,0.99623812,83539.0,83538.0,0.44783205]
[1743840053233,0.99623812,83539.0,83538.0,0.44781676]
[1743840054938,0.99423812,83539.0,83538.0,0.44781676]
[1743840055141,0.99523812,83539.0,83538.0,0.44781676]
[1743840055337,0.99323812,83539.0,83538.0,0.44781676]
[1743840055939,0.27163812,83539.0,83538.0,0.44781676]
[1743840056240,0.99323812,83539.0,83538.0,0.44781676]
[1743840058841,0.99423812,83539.0,83538.0,0.44781676]
[1743840059439,0.99423812,83539.0,83538.0,0.45781676]
[1743840060044,0.96997012,83539.0,83538.0,0.45781676]
[1743840060246,0.54476212,83539.0,83538.0,0.45781676]
[1743840060543,0.43018095,83539.0,83538.0,0.45781676]
[1743840060745,0.39089295,83539.0,83538.0,1.95781676]
[1743840060939,0.3608,83551.0,83538.0,2.31861676]
[1743840061141,0.3608,83551.0,83550.0,0.0718333]
[1743840061335,0.3608,83551.0,83550.0,0.09914511]
[1743840061543,0.3608,83551.0,83550.0,0.10153888]
[1743840062050,0.3618,83551.0,83550.0,0.10153888]
[1743840062638,0.3628,83551.0,83550.0,0.10153888]
[1743840065048,0.3628,83551.0,83550.0,0.51917533]
[1743840065260,0.36344,83551.0,83550.0,0.51981533]
[1743840071456,0.36344,83551.0,83550.0,0.50981533]
[1743840072151,0.36344,83551.0,83550.0,0.49250352]
[1743840072459,0.36344,83551.0,83550.0,0.5095248]
[1743840074056,0.36344,83551.0,83550.0,0.50957363]
[1743840074443,0.36344,83551.0,83550.0,0.51957363]
[1743840074648,0.00264,83551.0,83550.0,0.51957363]
[1743840074857,0.0004,83560.0,83559.0,0.0718256]
[1743840075054,0.00116,83560.0,83559.0,0.09208922]
[1743840076156,0.00416,83560.0,83559.0,0.09208922]
[1743840076357,0.00716,83560.0,83559.0,0.09208922]
[1743840076856,0.36796,83560.0,83559.0,0.09208922]
[1743840079361,0.36796,83560.0,83559.0,1.59208922]
[1743840080266,0.00716,83560.0,83559.0,1.59208922]
[1743840080557,0.0064,83560.0,83559.0,1.59208922]
[1743840083255,0.0064,83560.0,83559.0,1.59217752]
[1743840083949,0.31891077,83562.0,83561.0,0.0718239]
[1743840084151,0.4128,83573.0,83572.0,0.0718144]
[1743840084351,0.4128,83573.0,83572.0,0.09136595]
[1743840084565,0.4128,83573.0,83572.0,0.29036595]
[1743840085051,0.41356,83573.0,83572.0,0.29097577]
[1743840085460,0.41856,83573.0,83572.0,0.29197577]
[1743840085660,0.00576,83573.0,83572.0,0.29197577]
[1743840085862,0.005,83573.0,83572.0,0.29197577]
[1743840086965,0.006,83573.0,83572.0,0.29197577]
[1743840088765,0.006,83573.0,83572.0,0.2919368]
[1743840091265,0.3608,83583.0,83582.0,0.0718058]
[1743840091567,0.36144,83583.0,83582.0,0.29096791]
[1743840092678,0.36644,83583.0,83582.0,0.29096791]
[1743840094067,0.36644,83583.0,83582.0,0.30314938]
[1743840094265,0.36644,83583.0,83582.0,0.30301199]
[1743840095864,0.36644,83583.0,83582.0,0.31200326]
[1743840096065,0.36644,83583.0,83582.0,0.31199052]
[1743840096975,0.36644,83583.0,83582.0,1.81199052]
[1743840097168,0.3658,83583.0,83582.0,1.81199052]
[1743840097773,0.3658,83583.0,83582.0,1.81194882]
[1743840099776,0.3658,83583.0,83582.0,0.31194882]
[1743840099978,0.36640001,83583.0,83582.0,0.31194882]
[1743840100178,0.36640001,83583.0,83582.0,1.81194882]
[1743840100486,0.3658,83583.0,83582.0,1.81194882]
[1743840104973,0.005,83583.0,83582.0,1.81194882]
[1743840112379,0.005,83583.0,83582.0,1.79517139]
[1743840112583,0.005,83583.0,83582.0,1.81194047]
[1743840113286,0.005,83583.0,83582.0,1.81194368]
[1743840115187,0.3608,83598.0,83593.0,0.0717964]
[1743840115379,0.00104,83596.0,83594.0,0.0191648]
[1743840115576,0.00104,83596.0,83595.0,0.01916477]
[1743840115886,0.2228338,83596.0,83595.0,0.01916477]
[1743840116286,0.2228338,83596.0,83595.0,0.01915614]
[1743840116785,0.2238338,83596.0,83595.0,0.01915614]
[1743840118181,0.0738338,83596.0,83595.0,0.01915614]
[1743840119990,0.0738338,83596.0,83595.0,0.01996885]
[1743840123091,0.0738338,83596.0,83595.0,0.09176355]
[1743840123686,0.0738338,83596.0,83595.0,0.30624871]
[1743840124092,0.0738338,83596.0,83595.0,0.30626396]
[1743840124892,0.00204,83596.0,83595.0,0.30626396]
[1743840126683,0.00204,83596.0,83595.0,0.3062744]
[1743840128391,0.36284,83596.0,83595.0,0.3062744]
[1743840130192,0.36284,83596.0,83595.0,0.09178924]
[1743840131490,0.36284,83596.0,83595.0,0.09173649]
[1743840132092,0.36284,83596.0,83595.0,0.09171745]
[1743840132485,0.36284,83596.0,83595.0,0.0917175]
[1743840133882,0.36284,83596.0,83595.0,0.30620266]
[1743840135294,0.00204,83596.0,83595.0,0.30620266]
[1743840135488,0.36284,83596.0,83595.0,0.30620266]
[1743840137296,0.36284,83596.0,83595.0,0.0917175]
[1743840137689,0.36284,83596.0,83595.0,0.09171835]
[1743840140189,0.36284,83596.0,83595.0,0.01992365]
[1743840140396,0.4346338,83596.0,83595.0,0.01992365]
[1743840140695,0.36284,83596.0,83595.0,0.01992365]
[1743840141095,0.4705331,83596.0,83595.0,0.01992365]
[1743840141296,0.4705331,83596.0,83595.0,0.01977435]
[1743840142998,0.4705331,83596.0,83595.0,0.019791]
[1743840145102,0.4705331,83596.0,83595.0,0.01978098]
[1743840145691,0.4705331,83596.0,83595.0,0.09157568]
[1743840146905,0.07119076,83596.0,83595.0,0.09157568]
[1743840147204,0.07179077,83596.0,83595.0,0.09157568]
[1743840149503,0.14339903,83601.0,83600.0,0.0717904]
[1743840149693,0.14451904,83601.0,83600.0,0.0895389]
[1743840152306,0.14451904,83601.0,83600.0,0.4503389]
[1743840152605,0.00112001,83601.0,83600.0,0.4503389]
[1743840154601,0.0717858,83606.0,83605.0,0.0717861]
[1743840154913,0.0717858,83606.0,83605.0,0.0895346]
[1743840155907,0.0717858,83606.0,83605.0,0.08952945]
[1743840157310,0.14339903,83608.0,83606.0,0.0358925]
[1743840157509,0.21518333,83608.0,83607.0,0.08840775]
[1743840157708,0.21518333,83608.0,83607.0,0.08845305]
[1743840158008,0.21518333,83608.0,83607.0,0.08957305]
[1743840160004,0.0717843,83608.0,83607.0,0.08957305]
[1743840161210,0.21518183,83610.0,83609.0,0.0717827]
[1743840161399,0.21518183,83610.0,83609.0,0.08845135]
[1743840162510,0.21518183,83610.0,83609.0,0.08957135]
[1743840163210,0.21518183,83610.0,83609.0,0.0895645]
[1743840164013,0.0717828,83610.0,83609.0,0.0895645]
[1743840164607,0.18803182,83620.0,83609.0,0.0895645]
[1743840164816,0.0717801,83612.0,83611.0,0.1076705]
[1743840165013,0.0717801,83612.0,83611.0,0.4862523]
[1743840165314,0.0717801,83612.0,83611.0,0.5221421]
[1743840165914,0.3588056,83635.0,83611.0,0.5221421]
[1743840166112,0.0717681,83626.0,83625.0,0.3608]
[1743840166408,0.0717681,83626.0,83625.0,0.36196]
[1743840166598,0.2217681,83626.0,83625.0,0.36196]
[1743840167207,0.0358831,83629.0,83625.0,0.36196]
[1743840167407,0.0717681,83626.0,83625.0,0.36196]
[1743840170506,0.0717681,83626.0,83625.0,0.37852353]
[1743840170713,0.12994816,83626.0,83625.0,0.37852353]
[1743840171110,0.12994816,83626.0,83625.0,0.38736979]
[1743840174113,0.12994816,83626.0,83625.0,0.38741643]
[1743840175214,0.12994816,83626.0,83625.0,0.38741952]
[1743840175715,0.0717827,83609.0,83608.0,0.15437523]
[1743840175908,0.0358929,83606.0,83596.0,0.4082]
[1743840176106,0.071793,83597.0,83596.0,0.4082]
[1743840176306,0.071793,83597.0,83592.0,0.5043934]
[1743840176307,0.0717938,83596.0,83592.0,0.5043934]
[1743840176503,0.0717938,83596.0,83592.0,0.3608]
[1743840176917,0.0717938,83596.0,83592.0,0.4325969]
[1743840177118,0.0717938,83596.0,83592.0,0.5043937]
[1743840177313,0.0717938,83596.0,83592.0,0.3608]
[1743840177619,0.0717938,83596.0,83595.0,0.01124544]
[1743840178815,0.0717938,83596.0,83593.0,0.0717961]
[1743840178816,0.0358982,83593.0,83570.0,0.43295331]
[1743840179116,0.0718015,83587.0,83586.0,0.30916436]
[1743840179304,0.0359053,83577.0,83570.0,0.43295331]
[1743840179506,0.0718144,83572.0,83571.0,0.07241129]
[1743840179716,0.0718144,83572.0,83571.0,0.22241129]
[1743840180112,0.0718144,83572.0,83571.0,0.22317129]
[1743840183115,0.0718144,83572.0,83571.0,0.07317129]
[1743840183316,0.0725744,83572.0,83571.0,0.07317129]
[1743840184422,0.00076,83572.0,83571.0,0.07317129]
[1743840184614,0.0718133,83574.0,83573.0,0.0718136]
[1743840184813,0.0725733,83574.0,83573.0,0.0725736]
[1743840188121,0.107717,83576.0,83575.0,0.0718119]
[1743840190820,0.108517,83576.0,83575.0,0.0726119]
[1743840191922,0.0008,83576.0,83575.0,0.0726119]
[1743840192116,0.0718086,83579.0,83578.0,0.0718093]
[1743840192314,0.00017946,83580.0,83579.0,0.0718084]
[1743840192517,0.00017946,83580.0,83579.0,0.0726084]
[1743840194719,0.00101946,83580.0,83579.0,0.0726084]
[1743840194924,0.00017946,83580.0,83579.0,0.0726084]
[1743840195620,0.00017946,83580.0,83579.0,0.2226084]
[1743840195822,0.1077019,83590.0,83589.0,0.1076975]
[1743840196022,0.1077019,83590.0,83589.0,0.0358994]
[1743840196829,0.1077019,83588.0,83587.0,0.0718007]
[1743840200132,0.1085419,83588.0,83587.0,0.0726407]
[1743840203435,0.1085419,83588.0,83587.0,0.08918017]
[1743840205333,0.1085419,83588.0,83587.0,0.0726407]
[1743840207337,0.1085419,83588.0,83587.0,0.0891582]
[1743840209339,0.1085419,83588.0,83587.0,0.0726407]
[1743840209640,0.28694853,83588.0,83587.0,0.0726407]
[1743840213446,0.28694853,83588.0,83587.0,0.08916642]
[1743840214349,0.16674538,83588.0,83587.0,0.08916642]
[1743840215553,0.16674538,83588.0,83587.0,0.08917543]
[1743840216351,0.16674538,83588.0,83587.0,0.0726407]
[1743840217345,0.16674538,83588.0,83587.0,0.08919944]
[1743840218955,0.1085419,83588.0,83587.0,0.08919944]
[1743840219252,0.1085419,83588.0,83587.0,0.0892009]
[1743840222362,0.16674538,83588.0,83587.0,0.0892009]
[1743840226060,0.05904348,83588.0,83587.0,0.0892009]
[1743840226453,0.13084418,83588.0,83587.0,0.49741698]
[1743840226962,0.0358992,83591.0,83588.0,0.1076988]
[1743840227263,0.107699,83591.0,83590.0,0.071799]
[1743840227560,0.107699,83591.0,83590.0,0.49765528]
[1743840227762,0.107699,83591.0,83590.0,0.64765528]
[1743840228157,0.107699,83591.0,83590.0,0.6476191]
[1743840228857,0.107699,83591.0,83590.0,1.0084191]
[1743840231868,0.107699,83591.0,83590.0,1.00841074]
[1743840233467,0.107699,83591.0,83590.0,0.991879]
[1743840236463,0.107699,83591.0,83590.0,1.00839453]
[1743840237471,0.107699,83591.0,83590.0,0.991879]
[1743840238270,0.107699,83591.0,83590.0,0.841879]
[1743840239170,0.107699,83591.0,83590.0,0.991879]
[1743840239572,0.107699,83591.0,83590.0,0.631079]
[1743840239767,0.107699,83591.0,83590.0,0.991879]
[1743840242869,0.107699,83591.0,83590.0,0.631079]
[1743840243075,0.107699,83591.0,83590.0,0.991879]
[1743840244780,0.107699,83591.0,83590.0,0.841879]
[1743840246582,0.0717967,83593.0,83592.0,0.0717964]
[1743840246779,0.0717964,83593.0,83592.0,0.0728364]
[1743840246974,0.21435539,83602.0,83601.0,0.0717895]
[1743840247180,0.28614409,83602.0,83601.0,0.0728295]
[1743840247484,0.28614409,83602.0,83601.0,0.08942196]
[1743840248880,0.21435539,83602.0,83601.0,0.49762196]
[1743840249387,0.28614409,83602.0,83601.0,0.49762196]
[1743840249683,0.28614409,83602.0,83601.0,0.49761427]
[1743840250189,0.21435539,83602.0,83601.0,0.49761427]
[1743840250389,0.21521523,83602.0,83601.0,0.49761427]
[1743840251488,0.21521523,83602.0,83601.0,0.49759804]
[1743840253278,0.21521523,83602.0,83601.0,0.49758275]
[1743840254884,0.0717887,83602.0,83601.0,0.49758275]
[1743840255082,0.0717871,83604.0,83603.0,0.0717869]
[1743840255290,0.0717871,83604.0,83603.0,0.08936035]
[1743840256975,0.0717871,83604.0,83603.0,0.08933675]
[1743840257582,0.0717871,83604.0,83603.0,0.0728269]
[1743840258792,0.0717871,83604.0,83603.0,0.4810269]
[1743840261492,0.0717871,83604.0,83603.0,0.49756598]
[1743840261994,0.14342653,83606.0,83605.0,0.0717861]
[1743840262189,0.14342653,83606.0,83605.0,0.08936518]
[1743840264285,0.14342653,83606.0,83605.0,0.08949585]
[1743840264493,0.21435539,83619.0,83618.0,0.0717749]
[1743840264692,0.21435539,83619.0,83618.0,0.85852465]
[1743840265083,0.28613029,83619.0,83618.0,0.85852465]
[1743840265582,0.21435539,83619.0,83618.0,0.8673148]
[1743840266393,0.035885,83624.0,83623.0,0.0717706]
[1743840266583,0.035885,83624.0,83623.0,0.08948035]
[1743840267091,0.035885,83624.0,83623.0,0.10612829]
[1743840267292,0.1076556,83624.0,83623.0,0.10612829]
[1743840267595,0.035885,83624.0,83623.0,0.10612829]
[1743840267886,0.035885,83624.0,83623.0,0.08945854]
[1743840268098,0.035885,83624.0,83623.0,0.10638205]
[1743840270500,0.035885,83624.0,83623.0,0.51458205]
[1743840271591,0.035885,83624.0,83623.0,0.51458848]
[1743840273097,0.035885,83624.0,83623.0,0.87538848]
[1743840279107,0.035885,83624.0,83623.0,0.87538778]
[1743840281907,0.035885,83624.0,83623.0,0.51458778]
[1743840282706,0.035885,83624.0,83623.0,0.51457516]
[1743840287310,0.0358842,83626.0,83624.0,0.1076537]
[1743840287606,0.0358842,83626.0,83625.0,0.01691662]
[1743840287798,0.0358842,83626.0,83625.0,0.03460456]
[1743840287994,0.0358842,83626.0,83625.0,0.44280456]
[1743840288198,0.0358842,83626.0,83625.0,0.44281451]
[1743840288398,0.1076523,83626.0,83625.0,0.51458341]
[1743840293610,0.1076523,83626.0,83625.0,0.51458924]
[1743840293913,0.21491828,83629.0,83627.0,0.1076508]
[1743840294102,0.28668378,83629.0,83628.0,0.08869248]
[1743840294303,0.28668378,83629.0,83628.0,0.08973248]
[1743840294507,0.28668378,83629.0,83628.0,0.10638042]
[1743840295318,0.1076483,83629.0,83628.0,0.10638042]
[1743840295611,0.1076483,83629.0,83628.0,0.10648005]
[1743840297914,0.1076483,83629.0,83628.0,0.03471375]
[1743840298415,0.1076483,83629.0,83628.0,0.10648005]
[1743840299316,0.1076483,83629.0,83628.0,0.1064727]
[1743840299706,0.1076483,83629.0,83628.0,0.4070204]
[1743840300515,0.1076483,83629.0,83628.0,0.4120204]
[1743840301915,0.28612009,83630.0,83629.0,0.0717655]
[1743840302113,0.28612009,83630.0,83629.0,0.1064719]
[1743840302314,0.21435539,83630.0,83629.0,0.1064719]
[1743840302513,0.21435539,83630.0,83629.0,0.4672719]
[1743840303115,0.0004,83632.0,83631.0,0.0717638]
[1743840303302,0.0004,83632.0,83631.0,0.08878226]
[1743840303510,0.0004,83632.0,83631.0,0.08982226]
[1743840303711,0.0004,83632.0,83631.0,0.1064702]
[1743840304113,0.0004,83632.0,83631.0,0.2564702]
[1743840304815,0.0004,83632.0,83631.0,0.1064702]
[1743840305016,0.0004,83632.0,83631.0,0.08982226]
[1743840305217,0.0721629,83632.0,83631.0,0.08982226]
[1743840305712,0.02185119,83634.0,83633.0,0.0717621]
[1743840306020,0.02185119,83634.0,83633.0,0.08952611]
[1743840307418,0.09361409,83634.0,83633.0,0.08952611]
[1743840307813,0.09361409,83634.0,83633.0,0.0895249]
[1743840308919,0.0717629,83634.0,83633.0,0.0895249]
[1743840309420,0.0717629,83634.0,83633.0,0.4503249]
[1743840309619,0.0717629,83634.0,83633.0,0.450121]
[1743840311323,0.0717629,83634.0,83633.0,0.45023315]
[1743840311522,0.0717629,83634.0,83633.0,0.78667105]
[1743840311727,0.0717629,83634.0,83633.0,0.85843315]
[1743840311912,0.0717629,83634.0,83633.0,0.78667105]
[1743840312118,0.0717629,83634.0,83633.0,0.85843315]
[1743840318930,0.0717629,83634.0,83633.0,0.78667105]
[1743840319628,0.1220029,83634.0,83633.0,0.42587105]
[1743840320324,0.1220029,83634.0,83633.0,0.49763315]
[1743840323331,0.0358802,83635.0,83634.0,0.3579583]
[1743840323628,0.0861202,83635.0,83634.0,0.37458935]
[1743840324137,0.0861202,83635.0,83634.0,0.37562935]
[1743840324331,0.1578805,83635.0,83634.0,0.37562935]
[1743840325921,0.1578805,83635.0,83634.0,0.3756098]
[1743840326529,0.21605286,83635.0,83634.0,0.3756098]
[1743840327829,0.21605286,83635.0,83634.0,0.37563248]
[1743840329529,0.21605286,83635.0,83634.0,0.37570044]
[1743840330424,0.16581286,83635.0,83634.0,0.37570044]
[1743840330627,0.21605286,83635.0,83634.0,0.37570044]
[1743840330829,0.10841236,83635.0,83634.0,0.37570044]
[1743840331025,0.05817236,83635.0,83634.0,0.37570044]
[1743840331326,0.1076225,83651.0,83650.0,0.0717446]
[1743840331527,0.1578625,83651.0,83650.0,0.4799446]
[1743840331721,0.1578625,83651.0,83650.0,0.4809846]
[1743840332227,0.3608,83656.0,83652.0,0.0717449]
[1743840332432,0.05028,83657.0,83654.0,0.076744]
[1743840332629,0.05028,83657.0,83654.0,0.09449839]
[1743840333121,0.1220219,83657.0,83654.0,0.24449591]
[1743840333321,0.46064366,83655.0,83654.0,0.227784]
[1743840333529,0.46064366,83655.0,83654.0,0.24448196]
[1743840334326,0.46064366,83655.0,83654.0,0.09448196]
[1743840334534,0.46064366,83655.0,83654.0,0.0944777]
[1743840334828,0.46064366,83655.0,83654.0,0.0227337]
[1743840335024,0.46064366,83655.0,83654.0,0.0944777]
[1743840335225,0.0717432,83655.0,83654.0,0.0944777]
[1743840336325,0.1220632,83655.0,83654.0,0.0944777]
[1743840337934,0.0358673,83665.0,83659.0,0.2143947]
[1743840338131,0.0717389,83660.0,83659.0,0.2155147]
[1743840338834,0.21483221,83660.0,83659.0,0.2155147]
[1743840339229,0.21483221,83660.0,83659.0,0.2872545]
[1743840339734,0.21483221,83660.0,83659.0,0.30372936]
[1743840340226,0.26515221,83660.0,83659.0,0.30372936]
[1743840342740,0.1220589,83660.0,83659.0,0.30372936]
[1743840343040,0.0717389,83660.0,83659.0,0.30372936]
[1743840343238,0.1220589,83660.0,83659.0,0.30372936]
[1743840344540,0.1220589,83660.0,83659.0,0.2872545]
[1743840344738,0.1220189,83660.0,83659.0,0.2872545]
[1743840344938,0.0717389,83660.0,83659.0,0.2872545]
[1743840345138,0.1220189,83660.0,83659.0,0.2872545]
[1743840349543,0.035869,83661.0,83660.0,0.1641147]
[1743840349742,0.086189,83661.0,83660.0,0.1651947]
[1743840351244,0.157927,83661.0,83660.0,0.1651947]
[1743840351947,0.157927,83661.0,83660.0,0.0934558]
[1743840352244,0.157927,83661.0,83660.0,0.1651947]
[1743840352643,0.157927,83661.0,83660.0,0.17395726]
[1743840353745,0.086189,83661.0,83660.0,0.17395726]
[1743840354156,0.035869,83661.0,83660.0,0.17395726]
[1743840354349,0.086189,83661.0,83660.0,0.17395726]
[1743840354548,0.05032,83661.0,83660.0,0.17395726]
[1743840354847,0.14309331,83664.0,83663.0,0.0767363]
[1743840355145,0.19341331,83664.0,83663.0,0.45534344]
[1743840355749,0.05032,83664.0,83663.0,0.45534344]
[1743840355949,0.0721324,83668.0,83667.0,0.0717329]
[1743840355950,0.0004,83668.0,83667.0,0.0717329]
[1743840356139,0.05072,83668.0,83667.0,0.13159584]
[1743840356340,0.122452,83668.0,83667.0,0.13159584]
[1743840357051,0.122452,83668.0,83667.0,0.14806393]
[1743840357251,0.072132,83668.0,83667.0,0.14806393]
[1743840357448,0.122492,83668.0,83667.0,0.14806393]
[1743840357750,0.122492,83668.0,83667.0,0.13129679]
[1743840357952,0.122492,83668.0,83667.0,0.14809735]
[1743840358252,0.122452,83668.0,83667.0,0.14809735]
[1743840359153,0.05032,83668.0,83667.0,0.54476245]
[1743840359846,0.071732,83668.0,83667.0,0.50889505]
[1743840360047,0.05032,83668.0,83667.0,0.46683925]
[1743840360255,0.122052,83668.0,83667.0,0.46683925]
[1743840360642,0.122052,83668.0,83667.0,0.46684444]
[1743840360843,0.122052,83668.0,83667.0,0.45037635]
[1743840362256,0.122052,83668.0,83667.0,0.60037635]
[1743840362451,0.122052,83668.0,83667.0,0.45037635]
[1743840362652,0.122052,83668.0,83667.0,0.4503122]
[1743840368153,0.122052,83668.0,83667.0,0.4501424]
[1743840371854,0.122052,83668.0,83667.0,0.45010604]
[1743840372060,0.122052,83668.0,83667.0,0.81090604]
[1743840374256,0.122052,83668.0,83667.0,0.7943706]
[1743840375249,0.122052,83668.0,83667.0,0.8108394]
[1743840375460,0.122052,83668.0,83667.0,0.81084063]
[1743840375855,0.122052,83668.0,83667.0,0.81084069]
[1743840376054,0.0358581,83687.0,83676.0,0.03547184]
[1743840376362,0.0717243,83677.0,83676.0,0.03651184]
[1743840376556,0.0717243,83677.0,83676.0,0.39731184]
[1743840377965,0.0717243,83677.0,83676.0,0.46903704]
[1743840380169,0.1220043,83677.0,83676.0,0.46903704]
[1743840381173,0.1220043,83677.0,83676.0,0.48558595]
[1743840381867,0.1220043,83677.0,83676.0,0.89378595]
[1743840385066,0.1220043,83677.0,83676.0,0.89375377]
[1743840385267,0.0717243,83677.0,83676.0,0.89375377]
[1743840385471,0.1220043,83677.0,83676.0,0.87723704]
[1743840386172,0.0717243,83677.0,83676.0,0.87723704]
[1743840386468,0.1220443,83677.0,83676.0,0.87723704]
[1743840386667,0.1220443,83677.0,83676.0,0.80551184]
[1743840387069,0.1220443,83677.0,83676.0,0.79951184]
[1743840387573,0.0717243,83677.0,83676.0,0.87123704]
[1743840387763,0.1220443,83677.0,83676.0,0.87123704]
[1743840389571,0.0717243,83677.0,83676.0,0.87123704]
[1743840389775,0.1220443,83677.0,83676.0,0.87123704]
[1743840390075,0.21493709,83686.0,83685.0,0.005]
[1743840390275,0.21493709,83686.0,83685.0,0.6315974]
[1743840390476,0.26529709,83686.0,83685.0,0.6315974]
[1743840391376,0.26529709,83686.0,83685.0,0.7033149]
[1743840391377,0.37287289,83686.0,83685.0,0.7033149]
[1743840392178,0.0004,83704.0,83698.0,0.005]
[1743840392370,0.35763008,83707.0,83706.0,0.0716995]
[1743840392566,0.40803008,83707.0,83706.0,0.4335395]
[1743840392970,0.40803008,83707.0,83706.0,0.36184]
[1743840393171,0.40803008,83707.0,83706.0,0.00104]
[1743840393376,0.0717046,83700.0,83699.0,0.6255574]
[1743840393577,0.0717046,83700.0,83699.0,0.6266774]
[1743840394875,0.0717046,83700.0,83699.0,0.635469]
[1743840395872,0.1221446,83700.0,83699.0,0.7071745]
[1743840396072,0.0717046,83700.0,83699.0,0.7071745]
[1743840396578,0.0358519,83701.0,83700.0,0.1425728]
[1743840396769,0.0862919,83701.0,83700.0,0.1436128]
[1743840397068,0.0862919,83701.0,83700.0,0.1932128]
[1743840398280,0.1579957,83701.0,83700.0,0.2649174]
[1743840399781,0.1579957,83701.0,83700.0,0.2153174]
[1743840399971,0.1579957,83701.0,83700.0,0.1436128]
[1743840400167,0.1579957,83701.0,83700.0,0.1376128]
[1743840401379,0.1579957,83701.0,83700.0,0.2093174]
[1743840402981,0.1579957,83701.0,83700.0,0.1376128]
[1743840407079,0.1579557,83701.0,83700.0,0.1376128]
[1743840407488,0.3079557,83701.0,83698.0,0.00017924]
[1743840407680,0.1195234,83689.0,83688.0,0.005]
[1743840407879,0.4803234,83689.0,83688.0,0.005]
[1743840409190,0.1195349,83681.0,83680.0,0.00017924]
[1743840409484,0.1699349,83681.0,83680.0,0.00017924]
[1743840410373,0.53133491,83681.0,83680.0,0.00017924]
[1743840410578,0.53133491,83681.0,83680.0,0.40913924]
[1743840410782,0.53133491,83681.0,83680.0,0.40985924]
[1743840410979,0.53133491,83681.0,83680.0,0.40909924]
[1743840411174,0.53133491,83681.0,83680.0,0.41785994]
[1743840420596,0.3608,83701.0,83680.0,0.77865994]
[1743840420794,0.1195234,83689.0,83688.0,0.3608]
[1743840421095,0.12012341,83689.0,83688.0,0.36196]
[1743840423497,0.12012341,83689.0,83688.0,0.4814849]
[1743840424497,0.12012341,83689.0,83688.0,0.36196]
[1743840424894,0.17056341,83689.0,83688.0,0.36196]
[1743840425602,0.12012341,83689.0,83688.0,0.36196]
[1743840425794,0.17056341,83689.0,83688.0,0.77016]
[1743840427890,0.12012341,83689.0,83688.0,0.77016]
[1743840429298,0.12012341,83689.0,83688.0,0.8896849]
[1743840432701,0.12012341,83689.0,83688.0,0.77016]
[1743840435306,0.12012341,83689.0,83688.0,0.9392849]